[Event "XVI Memorial Lezcano Montalvo 2024"]
[Site "Gran Canaria"]
[Date "2024.03.28"]
[Round "6.18"]
[White "Calzetta Ruiz, Monica"]
[Black "Peters, Alexander John"]
[Result "1-0"]
[ECO "B34"]
[WhiteElo "2239"]
[BlackElo "1993"]
[Annotator "RC"]
[PlyCount "67"]
[EventDate "2024.03.23"]
[EventType "swiss"]
[EventCountry "ESP"]
[SourceTitle "playchess.com"]
[Source "ChessBase"]
[SourceQuality "1"]
[TimeControl "5400+30"]

1. e4 {[%emt 0:00:04]} c5 {[%emt 0:00:50]} 2. Nf3 {[%emt 0:00:11]} Nc6 {[%emt 0:00:15]} 3. d4 {[%emt 0:00:07]} cxd4 {[%emt 0:00:17]} 4. Nxd4 {[%emt 0:00:07]} g6 {[%emt 0:00:31]} 5. Nc3 {[%emt 0:04:49]} Bg7 {[%emt 0:01:07]} 6. Be3 {[%emt 0:00:07]} Nf6 {[%emt 0:00:18]} 7. Nxc6 {[%emt 0:02:27]} bxc6 {[%emt 0:00:30]} 8. e5 {[%emt 0:00:07]} Ng8 {[%emt 0:00:41]} 9. f4 {[%emt 0:01:47]} Nh6 {[%emt 0:02:07]} 10. Qd2 {[%emt 0:10:46]} O-O {[%emt 0:12:55]} 11. O-O-O {[%emt 0:00:53]} d6 {[%emt 0:06:53]} 12. h3 {[%emt 0:12:01]} Qa5 {[%emt 0:15:23]} 13. g4 {[%emt 0:02:18]} dxe5 {[%emt 0:02:57]} 14. fxe5 {[%emt 0:00:30]} Nxg4 {[%emt 0:04:39]} 15. hxg4 {[%emt 0:00:39]} Bxg4 {[%emt 0:07:49]} 16. Be2 {[%emt 0:37:20]} Bxe2 {[%emt 0:01:05]} 17. Qxe2 {[%emt 0:00:07]} Qxe5 {[%emt 0:04:31]} 18. Qf2 {[%emt 0:07:14]} Qa5 {[%emt 0:10:32]} 19. Bd4 {[%emt 0:03:01]} Rad8 {[%emt 0:09:00]} 20. Qh4 {[%emt 0:01:53]} h5 {[%emt 0:01:16]} 21. Bxg7 {[%emt 0:00:16]} Kxg7 {[%emt 0:03:03]} 22. Qxe7 {[%emt 0:00:07]} Rde8 {[%emt 0:03:30]} 23. Qh4 {[%emt 0:00:40]} Re6 {[%emt 0:03:38]} 24. Rd7 {[%emt 0:00:23]} Qe5 {[%emt 0:01:09]} 25. Qf2 {[%emt 0:02:22]} a5 {[%emt 0:00:44]} 26. Rf1 {[%emt 0:00:57]} Qe3+ {[%emt 0:01:41]} 27. Qxe3 {[%emt 0:00:34]} Rxe3 {[%emt 0:00:04]} 28. Kd2 {[%emt 0:12:43]} Re6 {[%emt 0:01:42]} 29. a4 {[%emt 0:00:00]} h4 {[%emt 0:00:32]} 30. Kd3 {[%emt 0:00:00]} g5 {[%emt 0:01:32]} 31. Ne4 {[%emt 0:00:00]} Kg6 {[%emt 0:00:23]} 32. Nc5 {[%emt 0:00:00]} Re5 {[%emt 0:02:21]} 33. Rd6+ {[%emt 0:00:00]} f6 {[%emt 0:00:38]} 34. Nd7 {[%emt 0:00:00]} 1-0

[Event "XVI Memorial Lezcano Montalvo 2024"]
[Site "Gran Canaria"]
[Date "2024.03.28"]
[Round "6.19"]
[White "Camino Carrio, Nicanor"]
[Black "Estremera Panos, Sergio"]
[Result "1-0"]
[ECO "D02"]
[WhiteElo "1962"]
[BlackElo "2233"]
[Annotator "RC"]
[PlyCount "81"]
[EventDate "2024.03.23"]
[EventType "swiss"]
[EventCountry "ESP"]
[SourceTitle "playchess.com"]
[Source "ChessBase"]
[SourceQuality "1"]
[TimeControl "5400+30"]

1. d4 {[%emt 0:00:13]} Nf6 {[%emt 0:01:35]} 2. Bf4 {[%emt 0:00:23]} d5 {[%emt 0:00:16]} 3. e3 {[%emt 0:00:26]} c5 {[%emt 0:00:23]} 4. Nf3 {[%emt 0:00:48]} Nc6 {[%emt 0:01:14]} 5. Nbd2 {[%emt 0:01:51]} e6 {[%emt 0:01:02]} 6. c3 {[%emt 0:01:54]} Nh5 {[%emt 0:01:10]} 7. Bg3 {[%emt 0:00:46]} Nxg3 {[%emt 0:01:05]} 8. hxg3 {[%emt 0:00:06]} Qb6 {[%emt 0:01:20]} 9. Rb1 {[%emt 0:03:41]} g6 {[%emt 0:04:55]} 10. Bd3 {[%emt 0:02:22]} cxd4 {[%emt 0:01:05]} 11. exd4 {[%emt 0:00:25]} Bg7 {[%emt 0:00:15]} 12. Qe2 {[%emt 0:02:40]} Qc7 {[%emt 0:08:31]} 13. Nf1 {[%emt 0:04:56]} O-O {[%emt 0:04:01]} 14. Ne3 {[%emt 0:00:42]} f5 {[%emt 0:08:45]} 15. Ng5 {[%emt 0:13:19]} h6 {[%emt 0:02:50]} 16. Nf3 {[%emt 0:00:20]} Bd7 {[%emt 0:05:30]} 17. O-O {[%emt 0:04:57]} g5 {[%emt 0:03:11]} 18. Bc2 {[%emt 0:05:32]} b5 {[%emt 0:22:05]} 19. Qd3 {[%emt 0:02:18]} Ne7 {[%emt 0:03:13]} 20. Rfe1 {[%emt 0:05:45]} Be8 {[%emt 0:04:42]} 21. Ng4 {[%emt 0:06:55]} Bh5 {[%emt 0:06:14]} 22. Nge5 {[%emt 0:02:26]} g4 {[%emt 0:01:15]} 23. Nd2 {[%emt 0:02:59]} Nc6 {[%emt 0:02:14]} 24. Qxb5 {[%emt 0:04:34]} Nxd4 {[%emt 0:01:07]} 25. cxd4 {[%emt 0:02:33]} Qxc2 {[%emt 0:00:07]} 26. Nb3 {[%emt 0:01:16]} f4 {[%emt 0:05:06]} 27. Qc6 {[%emt 0:05:20]} Qf5 {[%emt 0:01:21]} 28. gxf4 {[%emt 0:00:55]} Rac8 {[%emt 0:01:50]} 29. Qa6 {[%emt 0:01:14]} Bxe5 {[%emt 0:08:38]} 30. dxe5 {[%emt 0:01:05]} Qxf4 {[%emt 0:00:00]} 31. Qxe6+ {[%emt 0:00:47]} Kg7 {[%emt 0:00:00]} 32. Rf1 {[%emt 0:02:15]} Rc2 {[%emt 0:00:00]} 33. Qe7+ {[%emt 0:05:32]} Rf7 {[%emt 0:00:00]} 34. Qh4 {[%emt 0:00:08]} Qxe5 {[%emt 0:01:06]} 35. Rbe1 {[%emt 0:00:23]} Qg5 {[%emt 0:00:35]} 36. Qg3 {[%emt 0:16:44]} Qf4 {[%emt 0:00:28]} 37. Qh4 {[%emt 0:00:00]} Bg6 {[%emt 0:00:28]} 38. Re7 {[%emt 0:00:00]} Rxb2 {[%emt 0:00:58]} 39. Nc5 {[%emt 0:00:00]} Kh7 {[%emt 0:00:44]} 40. Ne6 {[%emt 0:00:00]} Qd2 {[%emt 0:00:28]} 41. Qf6 {[%emt 0:00:00]} 1-0

[Event "XVI Memorial Lezcano Montalvo 2024"]
[Site "Gran Canaria"]
[Date "2024.03.28"]
[Round "6.20"]
[White "Martin Ramos, Daniel"]
[Black "Marrero Rodriguez, Jorge"]
[Result "0-1"]
[ECO "C50"]
[WhiteElo "1961"]
[BlackElo "2177"]
[Annotator "RC"]
[PlyCount "42"]
[EventDate "2024.03.23"]
[EventType "swiss"]
[EventCountry "ESP"]
[SourceTitle "playchess.com"]
[Source "ChessBase"]
[SourceQuality "1"]
[TimeControl "5400+30"]

1. e4 {[%emt 0:00:09]} e5 {[%emt 0:00:21]} 2. Nf3 {[%emt 0:00:05]} Nc6 {[%emt 0:00:04]} 3. Bc4 {[%emt 0:00:05]} Nf6 {[%emt 0:00:05]} 4. d3 {[%emt 0:00:03]} Bc5 {[%emt 0:00:23]} 5. Be3 {[%emt 0:00:04]} Bb6 {[%emt 0:09:17]} 6. Nc3 {[%emt 0:02:09]} d6 {[%emt 0:03:59]} 7. h3 {[%emt 0:00:22]} h6 {[%emt 0:03:32]} 8. d4 {[%emt 0:02:26]} O-O {[%emt 0:10:39]} 9. Qd3 {[%emt 0:03:48]} exd4 {[%emt 0:07:48]} 10. Nxd4 {[%emt 0:00:34]} Ne5 {[%emt 0:00:07]} 11. Qe2 {[%emt 0:00:05]} Nxe4 {[%emt 0:03:42]} 12. Bxf7+ {[%emt 0:04:06]} Nxf7 {[%emt 0:00:49]} 13. Nxe4 {[%emt 0:00:06]} Re8 {[%emt 0:00:42]} 14. Qd3 {[%emt 0:00:46]} d5 {[%emt 0:01:49]} 15. Ng3 {[%emt 0:02:28]} c5 {[%emt 0:00:35]} 16. Ndf5 {[%emt 0:03:19]} d4 {[%emt 0:05:26]} 17. O-O-O {[%emt 0:02:07]} dxe3 {[%emt 0:00:09]} 18. Qb3 {[%emt 0:11:14]} Qg5 {[%emt 0:03:45]} 19. f4 {[%emt 0:01:16]} Qg6 {[%emt 0:01:44]} 20. Rd6 {[%emt 0:12:21]} Be6 {[%emt 0:02:46]} 21. Qd3 {[%emt 0:00:28]} Kh8 {[%emt 0:02:22]} 0-1

[Event "XVI Memorial Lezcano Montalvo 2024"]
[Site "Gran Canaria"]
[Date "2024.03.28"]
[Round "6.21"]
[White "Hernandez Leon, Sergio"]
[Black "Garbezza, Davide"]
[Result "1/2-1/2"]
[ECO "A07"]
[WhiteElo "2172"]
[BlackElo "1888"]
[Annotator "RC"]
[PlyCount "51"]
[EventDate "2024.03.23"]
[EventType "swiss"]
[EventCountry "ESP"]
[SourceTitle "playchess.com"]
[Source "ChessBase"]
[SourceQuality "1"]
[TimeControl "5400+30"]

1. Nf3 {[%emt 0:00:09]} d5 {[%emt 0:00:16]} 2. b3 {[%emt 0:00:09]} Bf5 {[%emt 0:00:39]} 3. Bb2 {[%emt 0:00:09]} e6 {[%emt 0:00:34]} 4. g3 {[%emt 0:00:07]} Nf6 {[%emt 0:00:24]} 5. Bg2 {[%emt 0:00:05]} h6 {[%emt 0:00:14]} 6. O-O {[%emt 0:00:10]} Be7 {[%emt 0:00:11]} 7. d3 {[%emt 0:00:05]} O-O {[%emt 0:00:15]} 8. Nbd2 {[%emt 0:00:21]} c6 {[%emt 0:01:08]} 9. Re1 {[%emt 0:00:17]} a5 {[%emt 0:00:35]} 10. a4 {[%emt 0:00:21]} Bh7 {[%emt 0:01:06]} 11. e4 {[%emt 0:02:23]} Na6 {[%emt 0:00:52]} 12. e5 {[%emt 0:02:40]} Nd7 {[%emt 0:00:30]} 13. Nd4 {[%emt 0:00:26]} Nb4 {[%emt 0:08:08]} 14. f4 {[%emt 0:05:01]} c5 {[%emt 0:06:41]} 15. Nb5 {[%emt 0:01:59]} Qb6 {[%emt 1:16:27]} 16. Kh1 {[%emt 0:13:12]} Rac8 {[%emt 0:00:00]} 17. Bf1 {[%emt 0:02:20]} Rfd8 {[%emt 0:00:00]} 18. Nf3 {[%emt 0:08:29]} c4 {[%emt 0:00:00]} 19. Bd4 {[%emt 0:06:26]} Qa6 {[%emt 0:02:00]} 20. Na7 {[%emt 0:02:39]} Rc7 {[%emt 0:00:00]} 21. Nb5 {[%emt 0:08:27]} Rcc8 {[%emt 0:00:00]} 22. Na7 {[%emt 0:02:03]} Rc7 {[%emt 0:00:00]} 23. Nb5 {[%emt 0:44:02]} Rcc8 {[%emt 0:02:00]} 24. Na7 {[%emt 0:00:30]} cxb3 {[%emt 0:00:30]} 25. Nxc8 Rxc8 26. cxb3 {[%emt 0:01:00]} 1/2-1/2

[Event "XVI Memorial Lezcano Montalvo 2024"]
[Site "Gran Canaria"]
[Date "2024.03.28"]
[Round "6.22"]
[White "Lopez Pereyra, Antonio"]
[Black "Rivero Tacoronte, Gabriel"]
[Result "0-1"]
[ECO "B11"]
[WhiteElo "2069"]
[BlackElo "1831"]
[Annotator "NA RC"]
[PlyCount "60"]
[EventDate "2024.03.23"]
[EventType "swiss"]
[EventCountry "ESP"]
[SourceTitle "playchess.com"]
[Source "ChessBase"]
[SourceQuality "1"]
[TimeControl "5400+30"]

1. e4 {[%emt 0:01:14]} c6 {[%emt 0:00:04]} 2. Nc3 {[%emt 0:00:45]} d5 {[%emt 0:00:04]} 3. Nf3 {[%emt 0:00:04]} dxe4 {[%emt 0:00:11]} 4. Nxe4 {[%emt 0:00:06]} Nf6 {[%emt 0:00:02]} 5. Qe2 {[%emt 0:02:45]} Nxe4 {[%emt 0:00:16]} 6. Qxe4 {[%emt 0:00:01]} Be6 {[%emt 0:00:22]} 7. b3 {[%emt 0:05:27]} Nd7 {[%emt 0:00:39]} 8. Bb2 {[%emt 0:00:52]} Nf6 {[%emt 0:00:19]} 9. Qh4 {[%emt 0:03:18]} Bf5 {[%emt 0:29:18]} 10. Nd4 {[%emt 0:19:51]} Bg6 {[%emt 0:01:08]} 11. f4 {[%emt 0:00:10]} e6 {[%emt 0:00:55]} 12. O-O-O {[%emt 0:13:25]} Bc5 {[%emt 0:15:44]} 13. f5 {[%emt 0:22:22]} exf5 {[%emt 0:12:37]} 14. Re1+ {[%emt 0:01:02]} Ne4 {[%emt 0:00:20]} 15. Nf3 {[%emt 0:19:32]} O-O {[%emt 0:07:50]} 16. Qf4 {[%emt 0:02:36]} Re8 {[%emt 0:02:35]} 17. Bd3 {[%emt 0:02:21]} Qa5 {[%emt 0:06:20]} 18. Bxe4 {[%emt 0:02:10]} fxe4 {[%emt 0:00:46]} 19. Ne5 {[%emt 0:00:19]} Qxa2 {[%emt 0:00:46]} 20. Nxg6 {[%emt 0:00:15]} Ba3 {[%emt 0:00:16]} 21. Kd1 {[%emt 0:01:48]} Qxb2 {[%emt 0:00:26]} 22. Nh4 {[%emt 0:00:24]} Qb1+ {[%emt 0:00:25]} 23. Ke2 {[%emt 0:00:01]} Qxc2 {[%emt 0:00:07]} 24. Nf5 {[%emt 0:00:54]} Qd3+ {[%emt 0:02:32]} 25. Kd1 {[%emt 0:00:27]} Qxb3+ {[%emt 0:00:06]} 26. Ke2 {[%emt 0:00:01]} Qd3+ {[%emt 0:00:35]} 27. Kd1 {[%emt 0:00:01]} Rad8 {[%emt 0:00:14]} 28. Qg5 {[%emt 0:01:41]} Bb2 {[%emt 0:02:34]} 29. Rhf1 {[%emt 0:00:31]} Kh8 {[%emt 0:01:25]} 30. Ng3 {[%emt 0:00:33]} e3 {[%emt 0:00:37]} 0-1

[Event "XVI Memorial Lezcano Montalvo 2024"]
[Site "Gran Canaria"]
[Date "2024.03.28"]
[Round "6.23"]
[White "Lorenzo Merino, Hector"]
[Black "Perez Bolanos, David"]
[Result "0-1"]
[ECO "D04"]
[WhiteElo "1586"]
[BlackElo "2053"]
[Annotator "NA RC"]
[PlyCount "88"]
[EventDate "2024.03.23"]
[EventType "swiss"]
[EventCountry "ESP"]
[SourceTitle "playchess.com"]
[Source "ChessBase"]
[SourceQuality "1"]
[TimeControl "5400+30"]

1. Nf3 {[%emt 0:08:06]} d5 {[%emt 0:00:14]} 2. d4 {[%emt 0:01:38]} Nf6 {[%emt 0:00:08]} 3. e3 {[%emt 0:00:17]} Nbd7 {[%emt 0:00:13]} 4. Bd3 {[%emt 0:00:20]} c5 {[%emt 0:00:12]} 5. c3 {[%emt 0:00:04]} g6 {[%emt 0:00:08]} 6. Nbd2 {[%emt 0:00:16]} Bg7 {[%emt 0:00:12]} 7. O-O {[%emt 0:01:01]} O-O {[%emt 0:00:17]} 8. b3 {[%emt 0:00:40]} b6 {[%emt 0:01:14]} 9. e4 {[%emt 0:00:21]} dxe4 {[%emt 0:01:25]} 10. Nxe4 {[%emt 0:00:08]} cxd4 {[%emt 0:02:15]} 11. Nxd4 {[%emt 0:02:26]} Bb7 {[%emt 0:00:58]} 12. Re1 {[%emt 0:00:17]} Nc5 {[%emt 0:11:58]} 13. Nxc5 {[%emt 0:03:02]} bxc5 {[%emt 0:00:17]} 14. Nf3 {[%emt 0:00:48]} Nd5 {[%emt 0:00:32]} 15. Bb2 {[%emt 0:02:28]} Nxc3 {[%emt 0:04:26]} 16. Qc2 {[%emt 0:00:18]} Bxf3 {[%emt 0:05:41]} 17. Bxc3 {[%emt 0:00:22]} Bxc3 {[%emt 0:02:31]} 18. Qxc3 {[%emt 0:00:21]} Bb7 {[%emt 0:01:01]} 19. Rad1 {[%emt 0:01:21]} Qc7 {[%emt 0:01:51]} 20. Re5 {[%emt 0:05:09]} Rac8 {[%emt 0:01:21]} 21. Rde1 {[%emt 0:03:01]} e6 {[%emt 0:01:13]} 22. h4 {[%emt 0:11:59]} Qd8 {[%emt 0:03:15]} 23. R1e3 {[%emt 0:07:43]} Qxh4 {[%emt 0:03:46]} 24. Rxc5 {[%emt 0:03:11]} Qg5 {[%emt 0:08:40]} 25. Rxg5 {[%emt 0:03:12]} Rxc3 {[%emt 0:00:59]} 26. Ra5 {[%emt 0:00:39]} Ra8 {[%emt 0:01:51]} 27. Be4 {[%emt 0:02:50]} Rxe3 {[%emt 0:00:43]} 28. Bxb7 {[%emt 0:00:11]} Re1+ {[%emt 0:00:04]} 29. Kh2 {[%emt 0:00:12]} Rb8 {[%emt 0:00:36]} 30. Rxa7 {[%emt 0:00:03]} Re2 {[%emt 0:00:33]} 31. Kg3 {[%emt 0:05:09]} Rd2 {[%emt 0:00:38]} 32. Bf3 {[%emt 0:01:45]} e5 {[%emt 0:00:37]} 33. Ba8 {[%emt 0:07:52]} Rd3+ {[%emt 0:01:06]} 34. Kg4 {[%emt 0:00:24]} Kg7 {[%emt 0:00:56]} 35. f4 {[%emt 0:02:45]} h5+ {[%emt 0:00:19]} 36. Kh4 {[%emt 0:01:01]} exf4 {[%emt 0:00:09]} 37. Bf3 {[%emt 0:00:26]} Kh6 {[%emt 0:01:18]} 38. Ra6 {[%emt 0:02:47]} Re8 {[%emt 0:00:54]} 39. Bxh5 {[%emt 0:00:49]} Re1 {[%emt 0:01:10]} 40. Bg4 {[%emt 0:03:44]} Rh1+ {[%emt 0:00:47]} 41. Bh3 {[%emt 0:00:11]} f3 {[%emt 0:00:09]} 42. Kg4 {[%emt 0:01:00]} f2 {[%emt 0:00:10]} 43. Rf6 {[%emt 0:00:40]} f1=Q {[%emt 0:00:10]} 44. Rxf1 {[%emt 0:00:20]} Rxf1 {[%emt 0:00:06]} 0-1

[Event "XVI Memorial Lezcano Montalvo 2024"]
[Site "Gran Canaria"]
[Date "2024.03.28"]
[Round "6.24"]
[White "Lizzul Coppe, Mirko"]
[Black "Gonzalez Perdomo, Sergio"]
[Result "1-0"]
[ECO "B89"]
[WhiteElo "2027"]
[BlackElo "1792"]
[Annotator "NA RC"]
[PlyCount "43"]
[EventDate "2024.03.23"]
[EventType "swiss"]
[EventCountry "ESP"]
[SourceTitle "playchess.com"]
[Source "ChessBase"]
[SourceQuality "1"]
[TimeControl "5400+30"]

1. e4 {[%emt 0:00:03]} c5 {[%emt 0:00:10]} 2. Nf3 {[%emt 0:00:04]} Nc6 {[%emt 0:00:18]} 3. d4 {[%emt 0:00:05]} cxd4 {[%emt 0:00:10]} 4. Nxd4 {[%emt 0:00:03]} Nf6 {[%emt 0:00:19]} 5. Nc3 {[%emt 0:00:02]} d6 {[%emt 0:00:18]} 6. Bc4 {[%emt 0:03:11]} e6 {[%emt 0:01:01]} 7. Be3 {[%emt 0:00:28]} Bd7 {[%emt 0:01:32]} 8. Qe2 {[%emt 0:02:11]} a6 {[%emt 0:02:02]} 9. O-O-O {[%emt 0:08:41]} Rc8 {[%emt 0:01:45]} 10. Bb3 {[%emt 0:03:24]} Be7 {[%emt 0:04:37]} 11. g4 {[%emt 0:15:16]} Nxd4 {[%emt 0:19:55]} 12. Bxd4 {[%emt 0:03:03]} e5 {[%emt 0:01:02]} 13. Bxe5 {[%emt 0:26:27]} dxe5 {[%emt 0:01:29]} 14. g5 {[%emt 0:00:32]} Ng4 {[%emt 0:25:49]} 15. h4 {[%emt 0:03:38]} Bxg5+ {[%emt 0:16:01]} 16. hxg5 {[%emt 0:00:26]} Qxg5+ {[%emt 0:00:10]} 17. Kb1 {[%emt 0:00:51]} g6 {[%emt 0:08:33]} 18. Bxf7+ {[%emt 0:04:06]} Kxf7 {[%emt 0:01:01]} 19. Rxd7+ {[%emt 0:00:09]} Ke8 {[%emt 0:01:09]} 20. Rxb7 {[%emt 0:01:27]} h5 {[%emt 0:02:35]} 21. Qxa6 {[%emt 0:00:53]} Qf6 {[%emt 0:00:27]} 22. Rb6 {[%emt 0:26:30]} 1-0

[Event "XVI Memorial Lezcano Montalvo 2024"]
[Site "Gran Canaria"]
[Date "2024.03.28"]
[Round "6.25"]
[White "Garcia Rodriguez, Adriana"]
[Black "Mendez Acosta, Alexander Jesus"]
[Result "1/2-1/2"]
[ECO "B00"]
[WhiteElo "1854"]
[BlackElo "2025"]
[Annotator "NA RC"]
[PlyCount "98"]
[EventDate "2024.03.23"]
[EventType "swiss"]
[EventCountry "ESP"]
[SourceTitle "playchess.com"]
[Source "ChessBase"]
[SourceQuality "1"]
[TimeControl "5400+30"]

1. e4 {[%emt 0:00:02]} b6 {[%emt 0:00:17]} 2. d4 {[%emt 0:00:05]} Bb7 {[%emt 0:00:11]} 3. Nc3 {[%emt 0:00:04]} e6 {[%emt 0:00:59]} 4. Be3 {[%emt 0:00:12]} Bb4 {[%emt 0:01:52]} 5. f3 {[%emt 0:01:19]} Nf6 {[%emt 0:08:49]} 6. Qd2 {[%emt 0:01:51]} d5 {[%emt 0:06:05]} 7. e5 {[%emt 0:01:50]} Nfd7 {[%emt 0:00:26]} 8. a3 {[%emt 0:01:49]} Be7 {[%emt 0:03:35]} 9. O-O-O {[%emt 0:01:30]} c5 {[%emt 0:01:47]} 10. f4 {[%emt 0:03:36]} cxd4 {[%emt 0:02:10]} 11. Bxd4 {[%emt 0:00:40]} Nc6 {[%emt 0:00:11]} 12. Nf3 {[%emt 0:02:24]} a6 {[%emt 0:05:05]} 13. g4 {[%emt 0:06:50]} Qc7 {[%emt 0:13:20]} 14. f5 {[%emt 0:12:21]} O-O-O {[%emt 0:05:44]} 15. h4 {[%emt 0:29:23]} Ndxe5 {[%emt 0:23:31]} 16. Nxe5 {[%emt 0:00:56]} Nxe5 {[%emt 0:00:07]} 17. fxe6 {[%emt 0:01:40]} Nf3 {[%emt 0:03:08]} 18. Qe2 {[%emt 0:23:14]} Nxd4 {[%emt 0:01:50]} 19. Rxd4 {[%emt 0:00:04]} Bf6 {[%emt 0:01:12]} 20. e7 {[%emt 0:02:17]} Bxe7 {[%emt 0:07:03]} 21. Bg2 {[%emt 0:01:54]} Rhe8 {[%emt 0:05:53]} 22. Qd3 {[%emt 0:03:14]} Bf6 {[%emt 0:03:03]} 23. Qf5+ {[%emt 0:01:56]} Qd7 {[%emt 0:01:49]} 24. Qxd7+ {[%emt 0:03:19]} Rxd7 {[%emt 0:00:09]} 25. Rd2 {[%emt 0:00:00]} d4 {[%emt 0:01:12]} 26. Bxb7+ {[%emt 0:00:00]} Kxb7 {[%emt 0:00:06]} 27. g5 {[%emt 0:00:18]} Be7 {[%emt 0:02:32]} 28. Rhd1 {[%emt 0:00:22]} Red8 {[%emt 0:00:13]} 29. Ne2 {[%emt 0:00:11]} Bd6 {[%emt 0:00:48]} 30. Rxd4 {[%emt 0:01:34]} Bf4+ {[%emt 0:00:28]} 31. Kb1 {[%emt 0:00:06]} Rxd4 {[%emt 0:00:23]} 32. Rxd4 {[%emt 0:00:14]} Rxd4 {[%emt 0:00:42]} 33. Nxd4 {[%emt 0:00:01]} g6 {[%emt 0:00:31]} 34. c4 {[%emt 0:00:27]} Bg3 {[%emt 0:00:22]} 35. Nf3 {[%emt 0:00:04]} Kc6 {[%emt 0:00:36]} 36. Kc2 {[%emt 0:00:03]} Kd6 {[%emt 0:00:43]} 37. Kd3 {[%emt 0:00:15]} Bf4 {[%emt 0:00:25]} 38. b4 {[%emt 0:02:04]} h6 {[%emt 0:00:47]} 39. Ke4 {[%emt 0:00:27]} Bc1 {[%emt 0:01:00]} 40. a4 {[%emt 0:00:11]} hxg5 {[%emt 0:00:12]} 41. hxg5 {[%emt 0:00:13]} a5 {[%emt 0:00:22]} 42. bxa5 {[%emt 0:01:57]} bxa5 {[%emt 0:00:08]} 43. Ne5 {[%emt 0:00:16]} Bxg5 {[%emt 0:01:25]} 44. Nxf7+ {[%emt 0:00:03]} Kc5 {[%emt 0:00:08]} 45. Nxg5 {[%emt 0:00:01]} Kxc4 {[%emt 0:00:09]} 46. Nf3 {[%emt 0:00:22]} Kb4 {[%emt 0:00:09]} 47. Kd4 {[%emt 0:00:02]} Kxa4 {[%emt 0:00:14]} 48. Kc4 {[%emt 0:00:03]} Ka3 {[%emt 0:00:15]} 49. Kc3 {[%emt 0:00:04]} Ka2 {[%emt 0:00:47]} 1/2-1/2

[Event "XVI Memorial Lezcano Montalvo 2024"]
[Site "Gran Canaria"]
[Date "2024.03.28"]
[Round "6.26"]
[White "Leandro Tejera, Damian"]
[Black "Mukhi Talreja, Ishita Tina"]
[Result "1/2-1/2"]
[ECO "D04"]
[WhiteElo "1483"]
[BlackElo "1755"]
[Annotator "NA RC"]
[PlyCount "147"]
[EventDate "2024.03.23"]
[EventType "swiss"]
[EventCountry "ESP"]
[SourceTitle "playchess.com"]
[Source "ChessBase"]
[SourceQuality "1"]
[TimeControl "5400+30"]

1. d4 {[%emt 1:31:00]} d5 {[%emt 0:00:11]} 2. Nf3 {[%emt 0:00:00]} Nf6 {[%emt 0:00:10]} 3. e3 {[%emt 0:00:00]} g6 {[%emt 0:00:19]} 4. Bd3 {[%emt 0:00:00]} Bg7 {[%emt 0:00:24]} 5. O-O {[%emt 0:00:00]} O-O {[%emt 0:00:48]} 6. b3 {[%emt 0:00:00]} b6 {[%emt 0:00:13]} 7. Bb2 {[%emt 0:00:00]} Bb7 {[%emt 0:00:26]} 8. Ne5 {[%emt 0:00:00]} c5 {[%emt 0:01:18]} 9. Nd2 {[%emt 0:00:00]} Nc6 {[%emt 0:01:10]} 10. f4 {[%emt 0:04:30]} Nb4 {[%emt 0:01:41]} 11. Bb5 {[%emt 0:00:00]} a6 {[%emt 0:00:38]} 12. Be2 {[%emt 0:00:00]} Rc8 {[%emt 0:00:34]} 13. a3 {[%emt 0:00:00]} Nc6 {[%emt 0:00:22]} 14. Ndf3 {[%emt 0:00:00]} cxd4 {[%emt 0:02:10]} 15. exd4 {[%emt 0:00:00]} Ne4 {[%emt 0:00:47]} 16. Nxc6 {[%emt 0:00:00]} Rxc6 {[%emt 0:00:45]} 17. Ne5 {[%emt 0:00:00]} Bxe5 {[%emt 0:01:30]} 18. fxe5 {[%emt 0:00:00]} Nc3 {[%emt 0:00:32]} 19. Qd2 {[%emt 0:00:00]} Nxe2+ {[%emt 0:01:31]} 20. Qxe2 {[%emt 0:00:00]} Qc7 {[%emt 0:00:54]} 21. Rac1 {[%emt 0:00:00]} b5 {[%emt 0:01:21]} 22. Qd2 {[%emt 0:00:00]} Kg7 {[%emt 0:00:38]} 23. Rf3 {[%emt 0:00:00]} Bc8 {[%emt 0:00:54]} 24. c4 {[%emt 0:00:00]} bxc4 {[%emt 0:01:22]} 25. bxc4 {[%emt 0:00:00]} Rxc4 {[%emt 0:00:24]} 26. Rxc4 {[%emt 0:00:00]} Qxc4 {[%emt 0:00:40]} 27. Rc3 {[%emt 0:00:00]} Qb5 {[%emt 0:01:49]} 28. Rc5 {[%emt 0:00:00]} Qb7 {[%emt 0:00:52]} 29. Bc1 {[%emt 0:00:00]} Bf5 {[%emt 0:02:06]} 30. Qh6+ {[%emt 0:00:00]} Kg8 {[%emt 0:00:17]} 31. Bg5 {[%emt 0:00:00]} f6 {[%emt 0:05:11]} 32. Bf4 {[%emt 0:00:00]} Rc8 {[%emt 0:11:28]} 33. Rxc8+ {[%emt 0:00:00]} Qxc8 {[%emt 0:01:18]} 34. h3 {[%emt 0:00:00]} Qc3 {[%emt 0:09:00]} 35. exf6 {[%emt 0:00:00]} Qxd4+ {[%emt 0:00:28]} 36. Kh1 {[%emt 0:00:00]} Qxf6 {[%emt 0:01:06]} 37. Bg5 {[%emt 0:00:00]} Qf7 {[%emt 0:00:39]} 38. Qh4 {[%emt 0:00:00]} Be4 {[%emt 0:00:57]} 39. Qg3 {[%emt 0:00:00]} Qf8 {[%emt 0:07:48]} 40. Kg1 {[%emt 0:00:00]} h6 {[%emt 0:04:50]} 41. Be3 {[%emt 0:00:00]} Kh7 {[%emt 0:01:29]} 42. Bc5 {[%emt 0:00:00]} Qf6 {[%emt 0:02:27]} 43. Qc7 {[%emt 0:00:00]} Qg5 {[%emt 0:00:34]} 44. Qxe7+ {[%emt 0:00:00]} Qxe7 {[%emt 0:00:07]} 45. Bxe7 {[%emt 0:00:00]} Kg7 {[%emt 0:01:16]} 46. Bc5 {[%emt 0:00:00]} Kf6 {[%emt 0:00:33]} 47. Bd4+ {[%emt 0:00:00]} Kf5 {[%emt 0:00:29]} 48. g4+ {[%emt 0:00:00]} Kf4 {[%emt 0:00:43]} 49. Kf2 {[%emt 0:00:00]} h5 {[%emt 0:00:07]} 50. gxh5 {[%emt 0:00:00]} gxh5 {[%emt 0:00:11]} 51. h4 {[%emt 0:00:00]} Bd3 {[%emt 0:00:34]} 52. Ke1 {[%emt 0:00:00]} Ke4 {[%emt 0:00:18]} 53. Bc3 {[%emt 0:00:00]} d4 {[%emt 0:00:48]} 54. Bd2 {[%emt 0:00:00]} Bc2 {[%emt 0:01:19]} 55. Bb4 {[%emt 0:00:00]} Kd3 {[%emt 0:01:09]} 56. Bd2 {[%emt 0:00:00]} Bb3 {[%emt 0:01:09]} 57. Bb4 {[%emt 0:00:00]} Kc2 {[%emt 0:04:25]} 58. Bd2 {[%emt 0:00:00]} Bc4 {[%emt 0:00:30]} 59. Bb4 {[%emt 0:00:00]} Kb3 {[%emt 0:00:24]} 60. Kd2 {[%emt 0:00:00]} Bf1 {[%emt 0:03:23]} 61. Kd1 {[%emt 0:00:00]} Kb2 {[%emt 0:01:13]} 62. Kd2 {[%emt 0:00:00]} d3 {[%emt 0:01:07]} 63. Bf8 {[%emt 0:00:00]} Kb3 {[%emt 0:01:32]} 64. Bb4 {[%emt 0:00:00]} Ka4 {[%emt 0:01:06]} 65. Be7 {[%emt 0:00:00]} Kb5 {[%emt 0:01:52]} 66. Bd6 {[%emt 0:00:00]} a5 {[%emt 0:00:19]} 67. Be7 {[%emt 0:00:00]} Kc4 {[%emt 0:00:32]} 68. Bd6 {[%emt 0:00:00]} Be2 {[%emt 0:02:44]} 69. Be7 {[%emt 0:00:00]} Kd4 {[%emt 0:00:14]} 70. Bd8 {[%emt 0:00:00]} a4 {[%emt 0:00:07]} 71. Be7 {[%emt 0:00:00]} Ke5 {[%emt 0:00:09]} 72. Bd8 {[%emt 0:00:00]} Kf4 {[%emt 0:00:08]} 73. Be7 {[%emt 0:00:00]} Kg3 {[%emt 0:00:08]} 74. Bg5 {[%emt 0:00:00]} 1/2-1/2